bitfinex-derivatives/quotes_SOLF0:USTF0_20250520
["timestamp","ask_amount","ask_price","bid_price","bid_amount"]
[1747713981169,0.04532487,168.83,168.78,10.99]
[1747713981568,6.36161116,168.83,168.78,10.99]
[1747713981764,5.9232,168.8,168.75,66.9046]
[1747713981966,0.04169951,168.79,168.75,66.9046]
[1747713982869,5.96489951,168.79,168.75,60.98]
[1747713983166,0.04169951,168.79,168.75,60.98]
[1747713984270,5.96499951,168.79,168.74,5.9248]
[1747713984571,5.96499951,168.79,168.75,61.0]
[1747713985571,5.96499951,168.79,168.75,66.9245]
[1747713985764,0.04169951,168.79,168.75,61.0]
[1747713986164,0.04169951,168.79,168.78,5.9235]
[1747713989775,0.04169951,168.79,168.77,5.9238]
[1747713991278,0.04169951,168.79,168.78,5.9235]
[1747713992279,0.04169951,168.79,168.75,61.0]
[1747713993582,0.04169951,168.79,168.77,5.9236]
[1747713993778,0.04169951,168.79,168.75,61.0]
[1747713994077,74.61353775,168.9,168.75,67.35725012]
[1747713994279,74.61353775,168.9,168.75,67.31628629]
[1747713994475,5.9208,168.86,168.82,5.9221]
[1747713994676,5.9208,168.86,168.82,66.9221]
[1747713994874,7.29725146,168.89,168.82,66.9221]
[1747713995075,5.9207,168.86,168.84,0.04247256]
[1747713995480,0.04246424,168.87,168.84,0.04247256]
[1747713995786,5.9208,168.86,168.84,0.04247256]
[1747713995980,0.04246424,168.87,168.84,0.04247256]
[1747713997584,5.9211,168.85,168.84,0.04247256]
[1747714001185,5.9211,168.85,168.84,7.256e-05]
[1747714014194,66.8411,168.85,168.84,7.256e-05]
[1747714014396,5.923,168.8,168.76,66.844]
[1747714014998,5.9232,168.79,168.76,60.92]
[1747714015297,5.96502426,168.79,168.76,60.92]
[1747714015698,0.04182426,168.79,168.76,66.844]
[1747714020901,0.04182426,168.79,168.77,5.9238]
[1747714021399,0.04182426,168.79,168.76,60.92]
[1747714021601,5.9221,168.83,168.76,60.92]
[1747714022103,5.9214,168.85,168.77,6.31628629]
[1747714022500,0.04491844,168.83,168.82,5.9219]
[1747714024608,0.04491844,168.83,168.81,5.9224]
[1747714026705,0.04491844,168.83,168.81,8.0049]
[1747714029105,0.04491844,168.83,168.82,5.9221]
[1747714029408,7.31753792,168.91,168.81,8.39878629]
[1747714029806,5.92,168.88,168.84,5.9212]
[1747714030106,5.92,168.88,168.84,60.92]
[1747714030411,5.9591042,168.88,168.84,60.95995644]
[1747714030608,5.9205,168.87,168.84,60.95995644]
[1747714032311,0.0391042,168.88,168.84,60.95995644]
[1747714032814,0.0391042,168.88,168.85,5.9208]
[1747714034618,5.9593042,168.88,168.85,5.9208]
[1747714037324,5.9207,168.87,168.84,60.95995644]
[1747714038427,5.9594042,168.88,168.84,66.88115644]
[1747714039421,5.9594042,168.88,168.85,5.921]
[1747714039726,0.0391042,168.88,168.84,60.95995644]
[1747714040218,0.0391042,168.88,168.85,5.9208]
[1747714040424,7.31753792,168.92,168.84,60.95995644]
[1747714040723,5.9193,168.9,168.86,5.9207]
[1747714040915,7.31753792,168.92,168.84,60.95995644]
[1747714041421,5.9199,168.89,168.84,60.95995644]
[1747714041623,0.04331857,168.9,168.84,0.03995644]
[1747714042822,5.9203,168.88,168.84,0.03995644]
[1747714043220,5.9203,168.88,168.84,5.96135644]
[1747714044024,5.9197,168.89,168.85,5.9211]
[1747714044213,0.04331857,168.9,168.84,60.85995644]
[1747714044717,5.9202,168.88,168.84,66.78115644]
[1747714044916,0.04331857,168.9,168.84,0.03995644]
[1747714045116,6.35960486,168.9,168.84,0.03995644]
[1747714045626,5.9209,168.86,168.84,0.03995644]
[1747714045824,6.35960486,168.9,168.84,0.03995644]
[1747714046025,0.04331857,168.9,168.84,0.03995644]
[1747714047125,5.9207,168.87,168.84,0.03995644]
[1747714047329,6.35960486,168.9,168.84,0.03995644]
[1747714047823,5.9211,168.85,168.84,5.644e-05]
[1747714048526,5.9225,168.81,168.8,10.9]
[1747714054034,5.9225,168.81,168.79,0.03951342]
[1747714055531,0.04359219,168.82,168.79,0.03951342]
[1747714056637,0.04359219,168.82,168.79,18.72241342]
[1747714057233,0.04359219,168.82,168.79,12.79951342]
[1747714058332,5.96579219,168.82,168.79,12.79951342]
[1747714059939,5.9225,168.81,168.79,12.79951342]
[1747714060237,0.04359219,168.82,168.79,12.79951342]
[1747714060537,5.9228,168.8,168.79,12.79951342]
[1747714060737,60.84,168.81,168.72,3.9351]
[1747714061236,5.9244,168.76,168.72,3.9351]
[1747714061738,5.96318517,168.76,168.72,3.97793793]
[1747714062341,5.9247,168.75,168.72,0.04283793]
[1747714062535,0.03878517,168.76,168.72,0.04283793]
[1747714063234,5.9246,168.75,168.72,0.04283793]
[1747714063639,0.03878517,168.76,168.72,0.04283793]
[1747714065146,0.03878517,168.76,168.73,5.9252]
[1747714065462,0.03878517,168.76,168.72,0.04283793]
[1747714065641,0.03878517,168.76,168.72,5.96823793]
[1747714066844,0.03878517,168.76,168.73,5.9251]
[1747714067234,0.03878517,168.76,168.72,5.96813793]
[1747714068142,0.03878517,168.76,168.72,0.04283793]
[1747714068347,6.35507146,168.76,168.72,0.04283793]
[1747714068740,1.8786,168.75,168.66,71.7]
[1747714068940,5.9261,168.71,168.66,77.6276]
[1747714069147,5.9261,168.71,168.66,16.8676]
[1747714069347,67.07628629,168.73,168.66,10.94]
[1747714069845,67.07628629,168.73,168.66,16.8677]
[1747714069846,0.0403246,168.71,168.66,16.8677]
[1747714071251,0.0403246,168.71,168.66,10.94]
[1747714071848,5.9267,168.7,168.66,10.94]
[1747714072048,0.0403246,168.71,168.66,10.94]
[1747714072448,5.9269,168.69,168.66,10.94]
[1747714072750,6.31628629,168.7,168.66,10.94]
[1747714074048,5.9273,168.68,168.66,10.94]
[1747714074251,6.31628629,168.7,168.66,10.94]
[1747714074441,6.31628629,168.7,168.6,62.7449]
[1747714074639,5.97168575,168.67,168.62,5.9289]
[1747714075047,5.97168575,168.67,168.6,62.7449]
[1747714075451,0.04408575,168.67,168.6,62.7449]
[1747714075851,0.04408575,168.67,168.62,5.9289]
[1747714076247,0.04408575,168.67,168.6,62.7449]
[1747714076449,0.04408575,168.67,168.63,5.9285]
[1747714076949,0.04408575,168.67,168.64,5.9283]
[1747714077349,0.04408575,168.67,168.6,62.7449]
[1747714077551,0.04408575,168.67,168.63,5.9285]
[1747714079550,0.04408575,168.67,168.62,5.9291]
[1747714080252,0.04408575,168.67,168.61,5.9294]
[1747714081254,5.928,168.66,168.61,5.9294]
[1747714081554,0.04408575,168.67,168.61,5.9294]
[1747714082448,0.04408575,168.67,168.62,5.9291]
[1747714082649,0.04408575,168.67,168.6,1.9649]
[1747714083255,0.04408575,168.67,168.64,5.9283]
[1747714084055,0.04408575,168.67,168.63,5.9287]
[1747714087058,0.04408575,168.67,168.64,5.9285]
[1747714087253,0.04408575,168.67,168.62,60.8]
[1747714087449,0.04408575,168.67,168.65,5.9278]
[1747714088361,0.04408575,168.67,168.64,7.8499]
[1747714088662,0.04408575,168.67,168.64,1.9215]
[1747714089762,5.97168575,168.67,168.64,1.9215]
[1747714091966,0.04408575,168.67,168.65,5.9281]
[1747714092866,60.72,168.75,168.66,60.72]
[1747714093068,60.72,168.75,168.67,2.051]
[1747714093467,5.9257,168.72,168.68,5.9268]
[1747714093768,0.04333852,168.72,168.68,0.03810667]
[1747714094063,0.04333852,168.72,168.69,1.8893]
[1747714094769,5.96923852,168.72,168.69,1.8893]
[1747714095973,5.9261,168.71,168.69,1.8893]
[1747714098577,5.96903852,168.72,168.69,1.8893]
[1747714099273,5.9261,168.71,168.69,1.8893]
[1747714100175,6.35962481,168.72,168.68,0.03810667]
[1747714100577,5.9267,168.69,168.68,0.03810667]
[1747714100777,6.31628629,168.69,168.6,3.8799]
[1747714100977,6.31628629,168.69,168.6,64.5799]
[1747714101877,0.04470177,168.66,168.6,64.5799]
[1747714102377,5.9286,168.64,168.6,64.5799]
[1747714102578,0.04470177,168.66,168.6,64.5799]
[1747714103076,5.9284,168.65,168.6,70.5095]
[1747714103773,5.97250177,168.66,168.61,5.9294]
[1747714104377,5.9283,168.65,168.6,70.5095]
[1747714104577,5.9283,168.65,168.6,64.5799]
[1747714105478,5.9283,168.65,168.6,70.5096]
[1747714105978,5.9283,168.65,168.61,5.9295]
[1747714106877,0.04470177,168.66,168.6,70.5096]
[1747714107074,0.04470177,168.66,168.6,64.5799]
[1747714107478,5.9287,168.64,168.6,64.5799]
[1747714109178,5.9289,168.63,168.6,64.5799]
[1747714109379,5.9289,168.63,168.6,3.8799]
[1747714110478,5.9286,168.64,168.6,3.8799]
[1747714110673,0.04470177,168.66,168.6,3.8799]
[1747714111177,5.9284,168.65,168.6,3.8799]
[1747714111870,5.9284,168.65,168.6,9.8097]
[1747714112479,5.9285,168.64,168.6,9.8097]
[1747714113280,5.9285,168.64,168.6,3.8799]
[1747714113483,5.9282,168.65,168.6,3.8799]
[1747714113781,0.04470177,168.66,168.6,3.8799]
[1747714114582,5.9285,168.64,168.6,9.8095]
[1747714114780,0.04470177,168.66,168.6,3.8799]
[1747714115575,5.9289,168.63,168.6,3.8799]
[1747714115782,5.9289,168.63,168.6,14.9999]
[1747714117079,67.08098806,168.66,168.6,11.12]
[1747714117682,5.9295,168.61,168.6,11.12]
[1747714119181,5.97269321,168.62,168.6,11.12]
[1747714119385,0.04339321,168.62,168.6,11.12]
[1747714120183,5.9295,168.61,168.6,11.12]
[1747714122686,0.04339321,168.62,168.6,11.12]
[1747714124080,0.04339321,168.62,168.6,17.0498]
[1747714124384,0.04339321,168.62,168.6,11.12]
[1747714126381,0.04339321,168.62,168.6,17.0496]
[1747714126885,0.04339321,168.62,168.6,11.12]
[1747714129190,5.97279321,168.62,168.6,11.12]
[1747714129784,5.9295,168.61,168.6,11.12]
[1747714131990,0.04339321,168.62,168.54,60.64]
[1747714132290,0.04339321,168.62,168.55,60.64]
[1747714132481,0.04320753,168.6,168.54,60.64]
[1747714133291,0.04320753,168.6,168.51,1.926]
[1747714133593,5.9305,168.59,168.54,60.64]
[1747714134293,5.9303,168.59,168.52,5.9324]
[1747714134489,5.9303,168.59,168.54,60.64]
[1747714135593,5.9303,168.59,168.54,66.5719]
[1747714137090,5.9303,168.59,168.54,66.5919]
[1747714137286,5.9303,168.59,168.54,5.9319]
[1747714137992,5.9303,168.59,168.54,66.5919]
[1747714138793,5.9306,168.58,168.53,66.5922]
[1747714139284,5.931,168.57,168.53,66.5922]
[1747714139489,5.931,168.57,168.52,5.9326]
[1747714139793,0.03875391,168.56,168.53,60.66]
[1747714139983,0.04432895,168.56,168.53,60.66]
[1747714140184,0.04432895,168.56,168.53,66.592]
[1747714140593,0.04432895,168.56,168.53,5.932]
[1747714140795,0.04432895,168.56,168.53,66.592]
[1747714141093,0.04432895,168.56,168.54,5.9319]
[1747714141388,0.04432895,168.56,168.55,5.9316]
[1747714141591,6.31628629,168.66,168.53,60.66]
[1747714141799,66.97628629,168.69,168.55,6.31628629]
[1747714141994,5.9268,168.69,168.58,6.31628629]
[1747714142193,14.52039324,168.75,168.56,516.5915]
[1747714142194,20.83667953,168.75,168.61,6.31628629]
[1747714142401,5.926,168.72,168.67,5.9274]
[1747714142590,0.04038122,168.69,168.67,66.5874]
[1747714143698,0.04038122,168.69,168.67,60.66]
[1747714148301,0.04038122,168.69,168.67,66.5873]
[1747714149304,0.04038122,168.69,168.68,5.927]
[1747714151105,0.04038122,168.69,168.67,66.5873]
[1747714151406,0.04038122,168.69,168.67,60.66]
[1747714151605,0.04038122,168.69,168.66,0.04046781]
[1747714151805,0.04038122,168.69,168.67,60.64]
[1747714152701,0.04038122,168.69,168.67,5.9271]
[1747714152905,0.04038122,168.69,168.68,60.54]
[1747714154707,0.04038122,168.69,168.67,60.54]
[1747714155002,5.96718122,168.69,168.67,60.54]
[1747714155199,0.04038122,168.69,168.67,60.54]
[1747714156699,5.927,168.68,168.67,60.54]
[1747714157011,5.927,168.68,168.66,0.04046781]
[1747714157405,0.04038122,168.69,168.66,0.04046781]
[1747714160206,5.9274,168.67,168.66,0.04046781]
[1747714160807,6.35666751,168.69,168.59,60.54]
[1747714161104,6.31628629,168.69,168.59,60.54]
[1747714161820,0.03835401,168.66,168.59,60.54]
[1747714163215,0.03835401,168.66,168.61,5.9295]
[1747714163714,0.03835401,168.66,168.62,5.9291]
[1747714164013,0.03835401,168.66,168.63,60.54]
[1747714164916,0.03835401,168.66,168.58,2.0842]
[1747714165117,5.9291,168.63,168.6,60.54]
[1747714166218,5.9291,168.63,168.59,60.54]
[1747714166414,5.96936621,168.63,168.59,60.54]
[1747714166915,5.9293,168.62,168.59,60.54]
[1747714168622,5.9295,168.61,168.59,60.54]
[1747714169121,5.9295,168.61,168.58,2.0842]
[1747714169322,5.9295,168.61,168.59,60.54]
[1747714170921,0.04026621,168.63,168.58,2.0842]
[1747714171224,0.04026621,168.63,168.58,62.6242]
[1747714171623,5.9294,168.62,168.58,68.5547]
[1747714171921,0.04026621,168.63,168.58,68.5547]
[1747714172320,5.9293,168.62,168.58,68.5547]
[1747714172822,0.04026621,168.63,168.58,68.5547]
[1747714173022,5.9292,168.62,168.58,68.5547]
[1747714173319,0.04026621,168.63,168.58,60.54]
[1747714174121,0.04026621,168.63,168.57,60.54]
[1747714174321,0.04026621,168.63,168.55,5.9315]
[1747714174523,0.04026621,168.63,168.56,60.54]
[1747714174924,5.9298,168.61,168.57,14.52]
[1747714175820,0.04026621,168.63,168.57,20.4508]
[1747714176024,5.9293,168.62,168.57,14.52]
[1747714176724,5.9293,168.62,168.58,5.9303]
[1747714176927,5.96906621,168.63,168.57,14.52]
[1747714177425,5.96906621,168.63,168.57,16.5692]
[1747714177628,5.96906621,168.63,168.59,5.9301]
[1747714178023,5.9292,168.62,168.59,5.9301]
[1747714179629,5.9292,168.62,168.58,5.9305]
[1747714179929,5.96916621,168.63,168.57,16.5692]
[1747714180226,0.04026621,168.63,168.59,5.9301]
[1747714181129,5.96916621,168.63,168.59,5.9301]
[1747714181830,5.96916621,168.63,168.6,5.9298]
[1747714182330,5.96916621,168.63,168.59,5.93]
[1747714182628,5.9292,168.62,168.59,5.93]
[1747714183229,5.9292,168.62,168.58,5.9303]
[1747714183626,5.9296,168.61,168.57,16.5692]
[1747714184430,5.9296,168.61,168.57,22.4999]
[1747714184731,5.9296,168.61,168.57,16.5692]
[1747714185635,5.9296,168.61,168.58,5.9305]
[1747714185834,5.9296,168.61,168.57,16.5692]
[1747714186637,0.04026621,168.63,168.57,14.52]
[1747714187132,5.9306,168.58,168.57,14.52]
[1747714187335,0.04081493,168.59,168.57,14.52]
[1747714188426,5.9306,168.58,168.57,14.52]
[1747714189232,5.97111493,168.59,168.57,14.52]
[1747714190137,5.9306,168.58,168.57,14.52]
[1747714190639,0.04081493,168.59,168.57,14.52]
[1747714192042,0.04081493,168.59,168.58,5.9306]
[1747714192743,0.04081493,168.59,168.57,75.0]
[1747714193040,0.04081493,168.59,168.57,14.52]
[1747714194139,0.04081493,168.59,168.57,20.4509]
[1747714194339,0.04081493,168.59,168.57,14.52]
[1747714194845,5.97131493,168.59,168.57,14.52]
[1747714195143,0.04081493,168.59,168.57,14.52]
[1747714195844,0.04081493,168.59,168.57,20.4508]
[1747714196043,0.04081493,168.59,168.57,14.52]
[1747714198344,0.04081493,168.59,168.58,5.9306]
[1747714198840,0.04081493,168.59,168.58,66.4106]
[1747714200342,193.66604487,168.69,168.58,60.48]
[1747714200641,133.18604487,168.69,168.59,3.9294]
[1747714200836,133.18604487,168.69,168.63,5.9288]
[1747714201033,133.18604487,168.69,168.63,60.48]
[1747714201239,5.928,168.66,168.63,60.48]
[1747714201543,5.928,168.66,168.64,0.04265996]
[1747714201749,0.04270317,168.68,168.64,0.04265996]
[1747714202046,5.9281,168.65,168.64,0.04265996]
[1747714203345,60.52270317,168.68,168.64,0.04265996]
[1747714204148,5.9281,168.65,168.64,0.04265996]
[1747714209447,5.9281,168.65,168.64,5.996e-05]
[1747714211348,5.9306,168.58,168.57,14.52]
[1747714212857,5.97049828,168.59,168.57,14.52]
[1747714213756,5.9306,168.58,168.57,14.52]
[1747714220058,0.04009828,168.59,168.52,60.4]
[1747714220758,0.04009828,168.59,168.55,5.9313]
[1747714221159,0.04009828,168.59,168.52,60.4]
[1747714221362,5.9306,168.58,168.53,5.9321]
[1747714221862,5.9306,168.58,168.54,14.76]
[1747714222056,5.931,168.57,168.54,14.76]
[1747714222560,0.04009828,168.59,168.54,14.76]
[1747714222963,5.9316,168.55,168.54,14.76]
[1747714226759,5.9314,168.56,168.54,14.76]
[1747714228165,5.9316,168.55,168.54,14.76]
[1747714229670,0.04009828,168.59,168.54,14.76]
[1747714230566,5.9306,168.58,168.54,20.6918]
[1747714231668,0.04009828,168.59,168.54,14.76]
[1747714231961,7.29620593,168.64,168.54,14.76]
[1747714232167,7.29620593,168.64,168.56,6.31628629]
[1747714232366,5.9288,168.63,168.59,5.9299]
[1747714232969,5.97144668,168.63,168.59,5.9689008]
[1747714233669,5.9296,168.61,168.59,0.0390008]
[1747714234161,0.04264668,168.63,168.59,0.0390008]
[1747714234370,5.9294,168.62,168.59,0.0390008]
[1747714234864,0.04264668,168.63,168.59,0.0390008]
[1747714235070,5.97154668,168.63,168.59,5.9691008]
[1747714236369,5.9292,168.62,168.59,5.9691008]
[1747714239068,0.04264668,168.63,168.59,0.0390008]
[1747714240671,5.97154668,168.63,168.59,5.9692008]
[1747714240973,5.97154668,168.63,168.59,0.0390008]
[1747714241673,5.97154668,168.63,168.59,5.9691008]
[1747714242073,5.9292,168.62,168.59,0.0390008]
[1747714245976,5.9295,168.61,168.59,0.0390008]
[1747714247481,5.9298,168.6,168.59,0.0390008]
[1747714250180,0.04264668,168.63,168.59,0.0390008]
[1747714250780,5.9278,168.66,168.62,5.9289]
[1747714250981,23.42989551,168.69,168.63,60.34]
[1747714251184,16.13368958,168.69,168.63,60.34]
[1747714251680,0.03837696,168.68,168.64,0.03994948]
[1747714251885,5.96547696,168.68,168.64,5.96804948]
[1747714253483,5.96547696,168.68,168.65,5.9281]
[1747714253484,0.03837696,168.68,168.65,5.9281]
[1747714254388,5.96547696,168.68,168.65,5.9281]
[1747714254883,5.96547696,168.68,168.64,5.96824948]
[1747714255988,0.03837696,168.68,168.64,0.03994948]
[1747714256382,0.03837696,168.68,168.67,5.9274]
[1747714256583,0.03837696,168.68,168.67,66.2674]
[1747714258890,8.22778629,168.78,168.67,60.34]
[1747714258891,60.32,168.78,168.67,60.34]
[1747714259089,66.63628629,168.81,168.67,60.34]
[1747714259288,5.924,168.77,168.68,5.9244]
[1747714259885,0.04147552,168.74,168.71,0.04224735]
[1747714260186,0.04147552,168.74,168.72,60.32]
[1747714260599,0.04147552,168.74,168.73,5.9249]
[1747714262004,0.04147552,168.74,168.72,66.2455]
[1747714262303,0.04147552,168.74,168.72,60.32]
[1747714262496,5.9253,168.73,168.71,0.04224735]
[1747714263000,0.04147552,168.74,168.71,0.04224735]
[1747714265500,6.31628629,168.73,168.63,60.3]
[1747714265702,70.56448629,168.73,168.63,60.3]
[1747714266003,6.31628629,168.7,168.63,60.3]
[1747714266399,0.04413537,168.68,168.65,0.03762863]
[1747714269709,0.04413537,168.68,168.65,5.96542863]
[1747714271206,0.04413537,168.68,168.66,5.9277]
[1747714273106,0.04413537,168.68,168.67,5.9274]
[1747714273312,0.04413537,168.68,168.67,66.2274]
[1747714277310,0.04413537,168.68,168.67,5.9274]
[1747714278410,0.04413537,168.68,168.66,66.1877]
[1747714281818,0.04413537,168.68,168.66,5.9277]
[1747714282012,0.04413537,168.68,168.66,60.26]
[1747714282221,0.04413537,168.68,168.67,5.9274]
[1747714283111,60.3,168.76,168.66,60.26]
[1747714283314,60.3,168.76,168.67,60.26]
[1747714283513,5.9265,168.7,168.67,60.26]
[1747714283708,60.3,168.76,168.66,5.9275]
[1747714284112,0.03895864,168.73,168.69,0.04086246]
[1747714284916,5.9263,168.7,168.69,0.04086246]
[1747714287721,5.926,168.71,168.69,0.04086246]
[1747714290318,5.9263,168.7,168.69,0.04086246]
[1747714298317,5.9282,168.65,168.63,12.68]
[1747714298518,6.31628629,168.67,168.63,12.68]
[1747714299026,60.26,168.68,168.63,12.68]
[1747714299418,5.97153325,168.67,168.64,0.04427265]
[1747714299929,0.04383325,168.67,168.65,5.9278]
[1747714300220,0.04383325,168.67,168.64,0.04427265]
[1747714300728,0.04383325,168.67,168.65,5.9278]
[1747714302424,0.04383325,168.67,168.64,5.97257265]
[1747714304529,0.04383325,168.67,168.65,5.9281]
[1747714304727,4.1311,168.76,168.64,6.36055894]
[1747714304921,4.1311,168.76,168.64,8.37398629]
[1747714305225,5.9249,168.75,168.7,5.9263]
[1747714305825,0.0409083,168.74,168.71,0.03759043]
[1747714306530,5.9658083,168.74,168.71,0.03759043]
[1747714307027,0.0409083,168.74,168.71,0.03759043]
[1747714307628,0.0409083,168.74,168.71,5.96359043]
[1747714310329,0.0409083,168.74,168.71,0.03759043]
[1747714311433,5.9256,168.72,168.71,0.03759043]
[1747714320026,5.9253,168.73,168.71,0.03759043]
[1747714321942,5.9256,168.72,168.71,0.03759043]
[1747714324844,5.9267,168.69,168.68,13.82]
[1747714326841,5.927,168.68,168.67,0.04244861]
[1747714327145,60.22,168.68,168.6,1.9145]
[1747714327947,0.04422675,168.66,168.62,0.03832391]
[1747714328244,5.9283,168.65,168.62,0.03832391]
[1747714328445,0.04422675,168.66,168.62,0.03832391]
[1747714328645,5.9282,168.65,168.62,0.03832391]
[1747714330045,5.9285,168.64,168.62,0.03832391]
[1747714330445,0.04422675,168.66,168.62,0.03832391]
[1747714330941,5.9287,168.64,168.62,0.03832391]
[1747714331444,0.04422675,168.66,168.62,0.03832391]
[1747714331646,5.9288,168.63,168.62,0.03832391]
[1747714345061,5.9288,168.63,168.62,2.391e-05]
[1747714346260,5.931,168.57,168.55,2.71]
[1747714346962,64.0392,168.64,168.55,2.71]
[1747714347262,64.0392,168.64,168.58,0.02048397]
[1747714347263,0.04320961,168.61,168.58,0.02048397]
[1747714348360,5.9302,168.59,168.58,0.02048397]
[1747714349861,5.9299,168.6,168.58,0.02048397]
[1747714350362,5.9302,168.59,168.58,0.02048397]
[1747714351665,5.9299,168.6,168.58,0.02048397]
[1747714352767,5.97270961,168.61,168.58,0.02048397]
[1747714353164,0.04320961,168.61,168.58,0.02048397]
[1747714354169,5.93,168.6,168.58,0.02048397]
[1747714355268,5.97290961,168.61,168.58,0.02048397]
[1747714355963,0.04320961,168.61,168.58,5.95088397]
[1747714356266,5.9299,168.6,168.58,0.02048397]
[1747714356669,0.04320961,168.61,168.58,0.02048397]
[1747714356864,0.04320961,168.61,168.58,5.95078397]
[1747714357064,0.04320961,168.61,168.58,0.02048397]
[1747714357268,0.04320961,168.61,168.58,60.26048397]
[1747714357565,0.04320961,168.61,168.59,5.93]
[1747714357867,0.04320961,168.61,168.58,60.26048397]
[1747714358270,0.04320961,168.61,168.6,5.9298]
[1747714363470,0.04320961,168.61,168.58,60.26048397]
[1747714363471,0.04320961,168.61,168.59,5.9301]
[1747714370882,0.04320961,168.61,168.6,5.9298]
[1747714375779,0.04320961,168.61,168.59,5.9301]
[1747714376384,0.04320961,168.61,168.6,5.9298]
[1747714376585,0.04320961,168.61,168.58,60.26048397]
[1747714376985,0.04320961,168.61,168.6,5.9298]
[1747714384889,71.42922588,168.69,168.58,60.26048397]
[1747714385088,69.45122588,168.69,168.58,60.24]
[1747714385286,5.9271,168.68,168.58,60.24]
[1747714385794,0.04535132,168.65,168.64,5.9281]
[1747714386584,7.27962588,168.72,168.64,6.31628629]
[1747714386794,7.27962588,168.72,168.65,2.0182]
[1747714387093,7.27962588,168.72,168.71,5.926]
[1747714387486,0.0428279,168.73,168.71,5.926]
[1747714387891,0.0428279,168.73,168.72,5.9256]
[1747714389796,60.2,168.8,168.7,66.55777199]
[1747714389988,60.18,168.83,168.7,66.55777199]
[1747714390291,60.18,168.83,168.7,66.51628629]
[1747714390494,5.9226,168.81,168.76,5.9239]
[1747714390995,0.04388442,168.8,168.77,0.04455991]
[1747714391795,0.04388442,168.8,168.77,5.96825991]
[1747714392894,0.04388442,168.8,168.77,0.04455991]
[1747714394098,0.04388442,168.8,168.77,5.96815991]
[1747714396900,0.04388442,168.8,168.77,0.04455991]
[1747714398203,0.04388442,168.8,168.77,5.96825991]
[1747714402001,0.04388442,168.8,168.77,0.04455991]
[1747714402608,5.96698442,168.8,168.77,0.04455991]
[1747714403106,0.04388442,168.8,168.77,0.04455991]
[1747714403308,0.04388442,168.8,168.77,5.96835991]
[1747714404509,0.04388442,168.8,168.78,5.9234]
[1747714407718,0.04388442,168.8,168.79,5.9232]
[1747714408517,0.04388442,168.8,168.79,66.0432]
[1747714410013,2.081,168.89,168.84,5.9214]
[1747714410216,2.081,168.89,168.79,66.43628629]
[1747714410411,60.12,168.92,168.82,6.31628629]
[1747714410617,60.12,168.92,168.83,60.12]
[1747714411021,0.03947144,168.89,168.86,0.04299933]
[1747714411716,0.03947144,168.89,168.86,5.96359933]
[1747714412919,0.03947144,168.89,168.86,0.04299933]
[1747714413115,6.31628629,168.88,168.79,60.12]
[1747714413311,1.9709,168.87,168.79,60.1]
[1747714414118,5.9224,168.82,168.81,0.03863226]
[1747714429333,5.924,168.77,168.73,67.9981]
[1747714430333,5.96260303,168.77,168.73,68.03885036]
[1747714430533,0.03860303,168.77,168.73,68.03885036]
[1747714431631,0.03860303,168.77,168.74,5.9249]
[1747714432534,5.96250303,168.77,168.74,5.9249]
[1747714433033,0.03860303,168.77,168.74,5.9249]
[1747714433533,0.03860303,168.77,168.73,62.11365036]
[1747714433731,5.96250303,168.77,168.73,62.11365036]
[1747714433934,0.03860303,168.77,168.73,0.04075036]
[1747714434834,0.03860303,168.77,168.74,5.9246]
[1747714436038,0.03860303,168.77,168.75,5.9245]
[1747714436428,0.03860303,168.77,168.73,0.04075036]
[1747714436632,0.03860303,168.77,168.74,60.1]
[1747714436936,0.03860303,168.77,168.76,5.9242]
[1747714443338,64.1088,168.85,168.74,66.41628629]
[1747714443339,60.1,168.85,168.81,5.9224]
[1747714443539,7.30352564,168.87,168.81,5.9224]
[1747714443738,5.9213,168.85,168.81,5.9224]
[1747714444235,5.922,168.83,168.81,0.04125746]
[1747714444441,0.03779226,168.85,168.81,0.04125746]
[1747714444741,5.9221,168.82,168.81,0.04125746]
[1747714448945,0.03779226,168.85,168.81,0.04125746]
[1747714449347,5.9214,168.84,168.81,0.04125746]